fUST/lending_fUST_20250616
["ID","MTS","AMOUNT","RATE_DAILY","PERIOD"]
[366147312,1750086647534,-1000.0,0.00024521,2]
[366147313,1750086647544,-7887.71,0.00024537,2]
[366147314,1750086647554,-500.0,0.0002461,2]
[366147315,1750086647564,-500.0,0.00024647,2]
[366147316,1750086647574,-15605.0582306,0.0002465,2]
[366147317,1750086647583,-554.83674021,0.0002465,2]
[366147318,1750086647593,-200.0,0.00024657,60]
[366147319,1750086647602,-1137.46,0.00024657,4]
[366147320,1750086647612,-470.49,0.00024657,4]
[366147321,1750086647622,-668.7,0.00024657,4]
[366147322,1750086647632,-541.78,0.00024657,4]
[366147323,1750086647641,-993.3,0.00024657,4]
[366147324,1750086647651,-491.98,0.00024657,4]
[366147325,1750086647660,-574.86,0.00024657,4]
[366147326,1750086647671,-1570.39,0.00024657,4]
[366147327,1750086647680,-609.66,0.00024657,4]
[366147328,1750086647689,-1346.39,0.00024657,4]
[366147329,1750086647700,-958.05,0.00024657,4]
[366147330,1750086647709,-1195.97,0.00024657,4]
[366147331,1750086647719,-1424.61,0.00024657,4]
[366147332,1750086647728,-500.0,0.00024658,7]
[366147333,1750086647738,-500.0,0.00024658,7]
[366147334,1750086647749,-570.3300677,0.00024658,7]
[366147335,1750086647758,-1000.0,0.00024658,2]
[366147336,1750086647768,-1000.0,0.00024658,2]
[366147337,1750086647778,-1000.0,0.00024658,2]
[366147338,1750086647787,-1000.0,0.00024658,2]
[366147339,1750086647797,-1000.0,0.00024658,2]
[366147340,1750086647806,-1000.0,0.00024658,2]
[366147341,1750086647816,-1000.0,0.00024658,2]
[366147342,1750086647825,-1000.0,0.00024658,2]
[366147343,1750086647835,-1000.0,0.00024658,2]
[366147344,1750086647844,-380.0,0.00024658,2]
[366147345,1750086647853,-1000.0,0.00024658,2]
[366147346,1750086647864,-1000.0,0.00024658,2]
[366147347,1750086647873,-1000.0,0.00024658,2]
[366147348,1750086647883,-500.0,0.00024658,2]
[366147349,1750086647892,-746.08940978,0.00024668,2]
[366147350,1750086647901,-1800.0,0.00024668,2]
[366147351,1750086647910,-1500.0,0.00024668,2]
[366147352,1750086647920,-500.0,0.00024685,2]
[366147353,1750086647930,-200.0,0.00024689,120]
[366147354,1750086647942,-1263.18764153,0.00024689,2]
[366147355,1750086647952,-500.0,0.00024713,2]
[366147356,1750086647961,-500.0,0.00024724,2]
[366147357,1750086647971,-685.83,0.00024731,6]
[366147358,1750086647982,-500.0,0.0002474,2]
[366147359,1750086647991,-200.0,0.00024745,120]
[366147360,1750086648093,-633.47462731,0.00024748,120]
[366147361,1750086648104,-200.0,0.00024765,120]
[366147362,1750086648114,-500.0,0.00024768,2]
[366147363,1750086648125,-200.0,0.00024779,120]
[366147364,1750086648134,-1003.49,0.0002479,10]
[366147365,1750086648145,-400.0,0.00024794,120]
[366147366,1750086648154,-500.0,0.00024795,2]
[366147367,1750086648164,-200.0,0.00024799,120]
[366147368,1750086648174,-150000.0,0.000248,70]
[366147369,1750086648184,-500.0,0.000248,120]
[366147370,1750086648194,-2000.0,0.000248,2]
[366147371,1750086648204,-2000.0,0.000248,2]
[366147372,1750086648214,-2000.0,0.000248,2]
[366147373,1750086648223,-4813.610861,0.000248,2]
[366147374,1750086648233,-200.0,0.000248,120]
[366147375,1750086648242,-207.0,0.000248,2]
[366147376,1750086648252,-207.0,0.000248,2]
[366147377,1750086648262,-185.520046,0.000248,7]
[366147378,1750086648273,-151.0,0.000248,7]
[366147379,1750086648284,-151.0,0.000248,7]
[366147380,1750086648293,-3544.674559,0.000248,2]
[366147381,1750086648303,-3544.674559,0.000248,2]
[366147382,1750086648314,-151.0,0.000248,7]
[366147383,1750086648324,-486.48,0.000248,31]
[366147384,1750086648334,-486.48,0.000248,31]
[366147385,1750086648344,-486.48,0.000248,31]
[366147386,1750086648354,-486.48,0.000248,31]
[366147387,1750086648367,-486.48,0.000248,31]
[366147388,1750086648378,-486.48,0.000248,31]
[366147389,1750086648389,-486.48,0.000248,31]
[366147390,1750086648400,-486.48,0.000248,31]
[366147391,1750086648411,-486.48,0.000248,31]
[366147392,1750086648422,-486.48,0.000248,31]
[366147393,1750086648433,-486.48,0.000248,31]
[366147394,1750086648444,-486.48,0.000248,31]
[366147395,1750086648454,-486.48,0.000248,31]
[366147396,1750086648465,-486.48,0.000248,31]
[366147397,1750086648476,-486.48,0.000248,31]
[366147398,1750086648486,-486.48,0.000248,31]
[366147399,1750086648496,-1263.18764153,0.00024802,2]
[366147400,1750086648506,-200.0,0.00024814,120]
[366147401,1750086648516,-500.0,0.00024814,2]
[366147402,1750086648526,-5888.0,0.00024824,2]
[366147403,1750086648536,-200.0,0.00024839,120]
[366147404,1750086648547,-160.0,0.00024845,6]
[366147405,1750086648557,-307.89132392,0.00024845,5]
[366147406,1750086648568,-1842.6289,0.0002487,2]
[366147407,1750086648579,-600.9505598,0.00024876,3]
[366147408,1750086648589,-200.0,0.00024886,120]
[366147409,1750086648599,-463813.2141731,0.0002489,15]
[366147410,1750086648609,-151.0,0.0002489,7]
[366147411,1750086648624,-151.0,0.0002489,7]
[366147412,1750086648634,-3544.674559,0.0002489,2]
[366147413,1750086648645,-3544.674559,0.0002489,2]
[366147414,1750086648656,-151.0,0.0002489,7]
[366147415,1750086648666,-400.0,0.00024894,3]
[366147416,1750086648677,-200.0,0.00024896,120]
[366147417,1750086648687,-307316.0,0.000249,30]
[366147418,1750086648696,-2000.0,0.000249,120]
[366147419,1750086648707,-151.0,0.000249,7]
[366147420,1750086648717,-151.0,0.000249,7]
[366147421,1750086648728,-200.407986,0.000249,7]
[366147422,1750086648739,-297.380512,0.000249,7]
[366147423,1750086648750,-3544.674559,0.000249,2]
[366147424,1750086648761,-3544.674559,0.000249,2]
[366147425,1750086648773,-3544.674559,0.000249,2]
[366147426,1750086648784,-3544.674559,0.000249,2]
[366147427,1750086648795,-98286.197975,0.000249,2]
[366147428,1750086648811,-504.14295602,0.000249,2]
[366147429,1750086648891,-1961.70348363,0.00022176,6]
[366147430,1750086648902,-1961.70348363,0.00022383,7]
[366147431,1750086648914,-1961.70348363,0.0002259,7]
[366147432,1750086648924,-617.34859194,0.00022797,7]
[366147433,1750086649023,-154.15271674,0.00019727,2]
[366147434,1750086649036,-1344.35489169,0.00022797,7]
[366147435,1750086649046,-1961.70348363,0.00023003,8]
[366147436,1750086649056,-1961.70348363,0.0002321,8]
[366147437,1750086649066,-1961.70348363,0.00023417,9]
[366147438,1750086649076,-1961.70348363,0.00023624,9]
[366147439,1750086649086,-1961.70348363,0.00023831,10]
[366147440,1750086649096,-151.0,0.00024,7]
[366147441,1750086649106,-151.0,0.00024,7]
[366147442,1750086649119,-151.0,0.00024,7]
[366147443,1750086649129,-151.0,0.00024,7]
[366147444,1750086649138,-151.0,0.00024,7]
[366147445,1750086649148,-151.0,0.00024,7]
[366147446,1750086649158,-151.0,0.00024,7]
[366147447,1750086649168,-176.078032,0.00024,7]
[366147448,1750086649177,-176.078032,0.00024,7]
[366147449,1750086649186,-394.2741656,0.00024038,10]
[366147450,1750086652250,-211.87,0.00023595,10]
[366147451,1750086652260,-176.078032,0.00024,7]
[366147452,1750086652270,-176.078032,0.00024,7]
[366147453,1750086652280,-139.073936,0.00024038,10]
[366147455,1750086677922,1000.0,0.00025016,120]
[366147456,1750086683951,1000.0,0.00025016,120]
[366147457,1750086690291,1000.0,0.00025016,120]
[366147458,1750086696453,503.0,0.00025016,120]
[366147461,1750086728888,400.0,0.00024657,120]
[366147462,1750086744986,163.337495,0.00019668,61]
[366147463,1750086745185,163.337495,0.00019668,90]
[366147464,1750086745399,163.337495,0.00019668,120]
[366147469,1750086787803,167.403175,0.00013699,2]
[366147472,1750086830421,150.0,0.00025016,120]
[366147474,1750086897301,-163.337495,0.00019668,31]
[366147476,1750086991349,200.0,0.0002387,120]
[366147478,1750087050762,200.0,0.00024569,120]
[366147482,1750087230821,200.0,0.00024508,120]
[366147485,1750087291271,200.0,0.00023873,120]
[366147487,1750087350815,200.0,0.00024366,120]
[366147488,1750087354250,257.97085111,0.00024657,120]
[366147490,1750087411255,200.0,0.00024482,120]
[366147493,1750087471720,200.0,0.00023711,120]
[366147494,1750087510043,151.0,0.00013699,2]
[366147495,1750087510612,151.0,0.00013699,2]
[366147497,1750087516444,864.2992677,0.00017714,2]
[366147499,1750087536939,2000.0,0.00017714,120]
[366147501,1750087559122,2938.1870257,0.00017678,2]
[366147504,1750087590732,200.0,0.00023963,120]
[366147506,1750087644186,400.0,0.00024657,120]
[366147510,1750087654710,2340.65574285,0.00025002,120]
[366147511,1750087666744,217.79871164,0.00025002,120]
[366147512,1750087672534,2783.55550421,0.00025002,120]
[366147513,1750087673114,665.16946605,0.000246,120]
[366147514,1750087677724,467.99200617,0.00024657,120]
[366147515,1750087685561,200.0,0.00025002,120]
[366147516,1750087696469,172.4310273,0.00025002,120]
[366147517,1750087697021,269.52139277,0.00025002,120]
[366147518,1750087699511,543.23823461,0.00025002,120]
[366147519,1750087703017,188.0,0.0002,120]
[366147520,1750087705479,960.4629092,0.00025002,120]
[366147521,1750087706223,914.0929858,0.00025002,120]
[366147522,1750087709390,556.87949007,0.00025002,120]
[366147523,1750087714394,843.13807375,0.00025002,120]
[366147524,1750087715373,686.96181818,0.00025002,120]
[366147525,1750087716675,240.82074905,0.00025002,120]
[366147526,1750087717484,332.09472214,0.00025002,120]
[366147527,1750087717727,1057.95464924,0.0002,120]
[366147528,1750087717895,241.6685392,0.00025002,120]
[366147529,1750087718523,2942.05853897,0.00025002,120]
[366147530,1750087719094,1079.39954269,0.00025002,120]
[366147531,1750087719313,2000.0,0.00025002,120]
[366147532,1750087719537,3051.58190918,0.00025002,120]
[366147533,1750087719998,1098.45886648,0.00025002,120]
[366147534,1750087720570,377.83160838,0.00024108,120]
[366147535,1750087721531,2596.03115602,0.00025002,120]
[366147536,1750087721915,1794.20312574,0.00024,120]
[366147537,1750087722277,2554.72549208,0.00025002,120]
[366147538,1750087722818,1112.38378044,0.00025002,120]
[366147539,1750087723227,1005.53165586,0.00025002,120]
[366147540,1750087723584,1430.34235124,0.00025002,120]
[366147541,1750087723754,862.29379485,0.00025002,120]
[366147542,1750087723794,463.45756595,0.00025002,120]
[366147543,1750087724256,1560.22297198,0.00025002,120]
[366147544,1750087724903,324.67303712,0.00025002,120]
[366147545,1750087724943,425.72545394,0.00025002,120]
[366147546,1750087724976,2141.57321141,0.00025002,120]
[366147547,1750087725009,215.48578837,0.00025002,120]
[366147548,1750087725195,730.20209965,0.00025002,120]
[366147549,1750087725603,1752.9084056,0.000245,120]
[366147550,1750087725824,1975.42364217,0.00025002,120]
[366147551,1750087725930,952.99729316,0.0002,120]
[366147552,1750087726330,316.35151427,0.00025002,120]
[366147553,1750087726449,203.35684808,0.00025002,120]
[366147554,1750087726940,383.95892486,0.00024,120]
[366147555,1750087727810,728.94349007,0.00025002,120]
[366147556,1750087727895,1678.97459162,0.00025002,120]
[366147557,1750087728080,218.22859274,0.0001536,120]
[366147558,1750087728727,533.11307103,0.00025002,120]
[366147559,1750087728944,266.00198869,0.00025002,120]
[366147560,1750087729103,1267.71238945,0.00024658,120]
[366147561,1750087729455,1010.00312445,0.0002,120]
[366147562,1750087729973,218.95650339,0.00025002,120]
[366147563,1750087730260,210.96436366,0.00025002,120]
[366147564,1750087730744,2552.97590047,0.00025002,120]
[366147565,1750087730871,984.61068665,0.00025002,120]
[366147566,1750087730916,2975.63288298,0.00025002,120]
[366147567,1750087731014,500.66231294,0.0002465,120]
[366147568,1750087731048,2567.5932277,0.00025002,120]
[366147569,1750087731089,233.07291025,0.00024,120]
[366147578,1750087778080,166.815967,0.00013699,2]
[366147582,1750087812274,151.0,0.00017714,2]
[366147583,1750087814750,235.3532387,0.00017626,2]
[366147586,1750087830750,200.0,0.00024172,120]
[366147627,1750087832220,-8095.0125459,0.00018239,2]
[366147628,1750087832231,-376.577824,0.00018413,2]
[366147629,1750087832242,-462.847698,0.00018413,2]
[366147630,1750087832252,-300.0,0.00018419,2]
[366147631,1750087832263,-160.0,0.0001842,2]
[366147632,1750087832273,-300.0,0.00018421,2]
[366147633,1750087832283,-24900.0,0.00018423,2]
[366147634,1750087832293,-666.0,0.00018481,2]
[366147635,1750087832304,-640.5285468,0.00018519,2]
[366147637,1750087832316,-218.42005292,0.00018603,2]
[366147639,1750087832326,-766.1209014,0.00018718,2]
[366147641,1750087832336,-302.87134229,0.00019078,2]
[366147642,1750087832347,-500.0,0.00019177,2]
[366147643,1750087832359,-500.0,0.00019177,2]
[366147644,1750087832370,-500.0,0.00019177,2]
[366147645,1750087832380,-500.0,0.00019177,2]
[366147647,1750087832393,-500.0,0.00019177,2]
[366147648,1750087832403,-500.0,0.00019177,2]
[366147650,1750087832413,-387.61972749,0.00019177,2]
[366147652,1750087832424,-460.0,0.00019178,2]
[366147654,1750087832434,-460.0,0.00019178,2]
[366147656,1750087832444,-460.0,0.00019178,2]
[366147657,1750087832454,-460.0,0.00019178,2]
[366147659,1750087832464,-460.0,0.00019178,2]
[366147661,1750087832474,-460.0,0.00019178,2]
[366147663,1750087832484,-444.79178926,0.00019178,2]
[366147665,1750087832495,-460.0,0.00019178,2]
[366147667,1750087832505,-460.0,0.00019178,2]
[366147668,1750087832515,-326.59709777,0.00019178,2]
[366147692,1750087837710,-133.40290223,0.00019178,2]
[366147694,1750087837720,-352.07853187,0.00019178,2]
[366147702,1750087837790,-107.92146813,0.00019178,2]
[366147704,1750087837805,-460.0,0.00019178,2]
[366147706,1750087837816,-299.26558907,0.00019178,2]
[366147708,1750087837826,-460.0,0.00019178,2]
[366147711,1750087837837,-460.0,0.00019178,2]
[366147713,1750087837848,-87.47689923,0.00019178,2]
[366147728,1750087837946,-372.52310077,0.00019178,2]
[366147730,1750087837956,-268.5240355,0.00019178,2]
[366147732,1750087837968,-191.4759645,0.00019178,2]
[366147734,1750087837979,-460.0,0.00019178,2]
[366147737,1750087837989,-460.0,0.00019178,2]
[366147738,1750087837999,-460.0,0.00019178,2]
[366147739,1750087838008,-460.0,0.00019178,2]
[366147740,1750087838018,-460.0,0.00019178,2]
[366147741,1750087838028,-460.0,0.00019178,2]
[366147742,1750087838038,-460.0,0.00019178,2]
[366147743,1750087838048,-260.00365151,0.00019178,2]
[366147759,1750087838345,-199.99634849,0.00019178,2]
[366147761,1750087838355,-331.51661107,0.00019178,2]
[366147763,1750087838365,-460.0,0.00019178,2]
[366147765,1750087838375,-621.17,0.00019178,2]
[366147767,1750087838385,-460.0,0.00019178,2]
[366147770,1750087838395,-460.0,0.00019178,2]
[366147772,1750087838405,-460.0,0.00019178,2]
[366147774,1750087838415,-460.0,0.00019178,2]
[366147776,1750087838426,-460.0,0.00019178,2]
[366147778,1750087838436,-460.0,0.00019178,2]
[366147780,1750087838446,-460.0,0.00019178,2]
[366147782,1750087838455,-460.0,0.00019178,2]
[366147784,1750087838465,-441.39080277,0.00019178,2]
[366147786,1750087838477,-540.31919723,0.00019178,2]
[366147788,1750087838488,-258.17559289,0.00019178,2]
[366147790,1750087838498,-460.0,0.00019178,2]
[366147792,1750087838508,-460.0,0.00019178,2]
[366147794,1750087838518,-628.55,0.00019178,2]
[366147796,1750087838529,-500.0,0.00019178,2]
[366147798,1750087838538,-460.0,0.00019178,2]
[366147800,1750087838549,-237.30484179,0.00019178,2]
[366147803,1750087838561,-182.69515821,0.00019178,2]
[366147805,1750087838570,-181.717641,0.00019178,2]
[366147807,1750087838580,-519.86,0.00019452,4]
[366147809,1750087838589,-460.0,0.00019452,4]
[366147811,1750087838599,-131.32719999,0.00019452,2]
[366147814,1750087838623,-328.67280001,0.00019452,2]
[366147816,1750087838634,-460.0,0.00019452,4]
[366147818,1750087838645,-460.0,0.00019452,4]
[366147820,1750087838655,-460.0,0.00019452,4]
[366147822,1750087838665,-460.0,0.00019452,4]
[366147824,1750087838675,-460.0,0.00019452,4]
[366147826,1750087838686,-460.0,0.00019452,4]
[366147828,1750087838696,-460.0,0.00019452,4]
[366147830,1750087838706,-460.0,0.00019452,4]
[366147833,1750087838716,-460.0,0.00019452,4]
[366147835,1750087838726,-460.0,0.00019452,4]
[366147837,1750087838736,-460.0,0.00019452,4]
[366147839,1750087838746,-460.0,0.00019452,4]
[366147841,1750087838756,-460.0,0.00019452,4]
[366147842,1750087838766,-460.0,0.00019452,4]
[366147845,1750087838776,-621.17,0.00019452,4]
[366147847,1750087838789,-460.0,0.00019452,4]
[366147849,1750087838799,-460.0,0.00019452,4]
[366147851,1750087838809,-460.0,0.00019452,4]
[366147853,1750087838819,-460.0,0.00019452,4]
[366147855,1750087838829,-460.0,0.00019452,4]
[366147857,1750087838839,-981.71,0.00019452,4]
[366147859,1750087838848,-628.55,0.00019452,4]
[366147861,1750087838858,-163.337495,0.00019668,2]
[366147863,1750087838867,-460.0,0.00019725,4]
[366147865,1750087838878,-460.0,0.00019725,4]
[366147867,1750087838888,-460.0,0.00019725,4]
[366147869,1750087838898,-460.0,0.00019725,4]
[366147871,1750087838908,-460.0,0.00019725,4]
[366147873,1750087838918,-460.0,0.00019725,4]
[366147875,1750087838928,-460.0,0.00019725,4]
[366147877,1750087838939,-460.0,0.00019725,4]
[366147879,1750087838949,-460.0,0.00019725,4]
[366147881,1750087838958,-460.0,0.00019725,4]
[366147883,1750087838968,-460.0,0.00019725,4]
[366147886,1750087838978,-551.53,0.00019725,4]
[366147888,1750087838988,-460.0,0.00019725,4]
[366147890,1750087838999,-296.62675901,0.00019726,4]
[366147892,1750087839009,-460.0,0.00019726,2]
[366147894,1750087839019,-460.0,0.00019726,4]
[366147896,1750087839029,-460.0,0.00019726,4]
[366147898,1750087839039,-460.0,0.00019726,4]
[366147900,1750087839050,-460.0,0.00019726,4]
[366147902,1750087839059,-460.0,0.00019726,4]
[366147904,1750087839070,-460.0,0.00019726,4]
[366147906,1750087839080,-460.0,0.00019726,4]
[366147909,1750087839090,-621.17,0.00019726,4]
[366147911,1750087839101,-460.0,0.00019726,4]
[366147913,1750087839110,-460.0,0.00019726,4]
[366147915,1750087839120,-460.0,0.00019726,4]
[366147917,1750087839131,-981.71,0.00019726,4]
[366147919,1750087839141,-628.55,0.00019726,4]
[366147921,1750087839151,-302.87134227,0.00019763,2]
[366147923,1750087839161,-502.47256086,0.00019908,2]
[366147925,1750087839171,-464.10445723,0.00019908,2]
[366147927,1750087839180,-460.0,0.00019999,4]
[366147929,1750087839191,-460.0,0.00019999,4]
[366147931,1750087839200,-552.0574046,0.00019999,4]
[366147933,1750087839212,-214.0,0.00019999,4]
[366147935,1750087839222,-460.0,0.00019999,4]
[366147937,1750087839232,-460.0,0.00019999,4]
[366147939,1750087839242,-460.0,0.00019999,4]
[366147941,1750087839252,-460.0,0.00019999,4]
[366147943,1750087839262,-460.0,0.00019999,4]
[366147945,1750087839272,-551.53,0.00019999,4]
[366147947,1750087839282,-460.0,0.0002,2]
[366147949,1750087839292,-460.0,0.0002,4]
[366147951,1750087839302,-460.0,0.0002,4]
[366147953,1750087839313,-460.0,0.0002,4]
[366147955,1750087839325,-460.0,0.0002,4]
[366147958,1750087839335,-460.0,0.0002,4]
[366147960,1750087839345,-460.0,0.0002,4]
[366147961,1750087839354,-460.0,0.0002,4]
[366147963,1750087839365,-621.17,0.0002,4]
[366147965,1750087839376,-460.0,0.0002,4]
[366147966,1750087839386,-460.0,0.0002,4]
[366147968,1750087839398,-460.0,0.0002,4]
[366147969,1750087839409,-981.71,0.0002,4]
[366147970,1750087839420,-628.55,0.0002,4]
[366147971,1750087839430,-500.0,0.00020027,2]
[366147972,1750087839440,-292.71053663,0.00020028,2]
[366147973,1750087839451,-420.0,0.00020089,2]
[366147974,1750087839461,-420.0,0.00020091,2]
[366147975,1750087839471,-1392.94120233,0.000201,2]
[366147976,1750087839482,-1392.94120205,0.00020107,2]
[366147977,1750087839493,-504.89682241,0.00020206,2]
[366147978,1750087839503,-513.9240945,0.00020206,2]
[366147979,1750087839514,-500.0,0.00020206,2]
[366147980,1750087839524,-1119354.15023,0.00020272,2]
[366147981,1750087839535,-481.71000001,0.00020273,4]
[366147982,1750087839545,-460.0,0.00020273,2]
[366147983,1750087839555,-460.0,0.00020273,4]
[366147984,1750087839566,-460.0,0.00020273,4]
[366147985,1750087839576,-460.0,0.00020273,4]
[366147986,1750087839586,-460.0,0.00020273,4]
[366147987,1750087839596,-460.0,0.00020273,4]
[366147988,1750087839607,-460.0,0.00020273,4]
[366147989,1750087839617,-493.69,0.00020273,4]
[366147990,1750087839628,-411.78,0.00020273,4]
[366147991,1750087839638,-460.0,0.00020273,4]
[366147992,1750087839650,-460.0,0.00020273,4]
[366147993,1750087839660,-460.0,0.00020273,4]
[366147994,1750087839672,-621.17,0.00020273,4]
[366147995,1750087839683,-460.0,0.00020273,4]
[366147996,1750087839694,-460.0,0.00020273,4]
[366147997,1750087839704,-460.0,0.00020273,4]
[366147998,1750087839715,-551.53,0.00020273,4]
[366147999,1750087839725,-460.0,0.00020273,4]
[366148000,1750087839735,-981.71,0.00020273,4]
[366148001,1750087839746,-628.55,0.00020273,4]
[366148002,1750087839756,-495.58,0.0002029,3]
[366148004,1750087839766,-247.79,0.0002029,3]
[366148006,1750087839776,-70296.9240575,0.000203,5]
[366148008,1750087839786,-743.39,0.00020307,3]
[366148010,1750087839797,-1392.94120205,0.00020314,3]
[366148012,1750087839808,-500.0,0.00020363,2]
[366148014,1750087839820,-500.0,0.00020363,2]
[366148016,1750087839830,-500.0,0.00020363,2]
[366148019,1750087839841,-504.0322667,0.00020404,2]
[366148021,1750087839851,-500.0,0.00020426,2]
[366148023,1750087839862,-302.87134227,0.00020447,2]
[366148025,1750087839872,-504.0200472,0.000205,2]
[366148027,1750087839883,-500.0,0.000205,2]
[366148029,1750087839894,-500.57114652,0.000205,2]
[366148031,1750087839903,-500.0,0.000205,2]
[366148047,1750087840047,-500.0,0.000205,2]
[366148049,1750087840058,-500.0,0.000205,2]
[366148051,1750087840068,-517.08068501,0.000205,2]
[366148054,1750087840079,-500.0,0.000205,2]
[366148057,1750087840089,-365.37169537,0.000205,2]
[366148059,1750087840099,-169.429,0.00020501,2]
[366148061,1750087840110,-1392.94120205,0.00020521,3]
[366148063,1750087840120,-500.0,0.00020526,2]
[366148065,1750087840131,-500.50538099,0.00020536,2]
[366148067,1750087840141,-532.98731685,0.00020536,2]
[366148069,1750087840152,-550.41727479,0.00020536,2]
[366148071,1750087840163,-460.0,0.00020547,2]
[366148073,1750087840173,-460.0,0.00020547,4]
[366148075,1750087840183,-460.0,0.00020547,4]
[366148077,1750087840193,-460.0,0.00020547,4]
[366148079,1750087840204,-460.0,0.00020547,4]
[366148081,1750087840214,-460.0,0.00020547,4]
[366148083,1750087840225,-460.0,0.00020547,4]
[366148085,1750087840235,-460.0,0.00020547,4]
[366148088,1750087840246,-460.0,0.00020547,4]
[366148090,1750087840256,-460.0,0.00020547,4]
[366148092,1750087840266,-621.17,0.00020547,4]
[366148094,1750087840275,-460.0,0.00020547,4]
[366148097,1750087840286,-460.0,0.00020547,4]
[366148100,1750087840295,-304.98,0.00020547,4]
[366148103,1750087840305,-551.53,0.00020547,4]
[366148106,1750087840317,-460.0,0.00020547,4]
[366148109,1750087840329,-981.71,0.00020547,4]
[366148112,1750087840339,-628.55,0.00020547,4]
[366148115,1750087840349,-1450.06,0.00020615,2]
[366148118,1750087840360,-500.0,0.00020621,2]
[366148121,1750087840369,-500.0,0.00020621,2]
[366148124,1750087840381,-500.0,0.00020621,2]
[366148127,1750087840392,-500.0,0.00020621,2]
[366148130,1750087840402,-500.0,0.00020621,2]
[366148133,1750087840412,-1392.94120205,0.00020728,3]
[366148136,1750087840423,-12537.89035583,0.0002074,2]
[366148139,1750087840439,-160.0,0.0002074,2]
[366148142,1750087840449,-424.54874296,0.0002074,2]
[366148145,1750087840460,-160.0,0.0002074,2]
[366148148,1750087840470,-160.0,0.0002074,2]
[366148151,1750087840479,-845.47092152,0.0002074,2]
[366148154,1750087840489,-229.90125484,0.0002074,2]
[366148157,1750087840500,-213.36025772,0.0002074,2]
[366148160,1750087840510,-835.67987521,0.0002074,2]
[366148163,1750087840522,-160.0,0.0002074,2]
[366148166,1750087840532,-160.0,0.0002074,2]
[366148169,1750087840542,-160.0,0.0002074,2]
[366148172,1750087840553,-1000.0,0.00020754,2]
[366148176,1750087840566,-460.0,0.00020821,2]
[366148179,1750087840576,-460.0,0.00020821,4]
[366148182,1750087840587,-460.0,0.00020821,4]
[366148185,1750087840597,-460.0,0.00020821,4]
[366148188,1750087840607,-460.0,0.00020821,4]
[366148191,1750087840617,-460.0,0.00020821,4]
[366148194,1750087840627,-460.0,0.00020821,4]
[366148197,1750087840637,-460.0,0.00020821,4]
[366148200,1750087840651,-460.0,0.00020821,4]
[366148203,1750087840661,-460.0,0.00020821,4]
[366148206,1750087840671,-621.17,0.00020821,4]
[366148209,1750087840680,-460.0,0.00020821,4]
[366148212,1750087840690,-460.0,0.00020821,4]
[366148215,1750087840699,-551.53,0.00020821,4]
[366148218,1750087840709,-460.0,0.00020821,4]
[366148220,1750087840719,-981.71,0.00020821,4]
[366148223,1750087840729,-628.55,0.00020821,4]
[366148227,1750087840739,-1000.0,0.0002091,2]
[366148230,1750087840749,-1000.0,0.0002091,2]
[366148233,1750087840759,-500.0,0.0002091,2]